Cogmind - Beta 10.2 @@@ ROGUE MODE // 2021.07.19 @ 22:21:42 Player: Bathcat Result: Destroyed by G-47 Trooper with Particle Gun Performance ------------- Evolutions (0) 0 Regions Visited (2) 400 Robots Destroyed (8) 40 Value Destroyed (197) 197 Prototype IDs (0) 0 Alien Tech Used (0) 0 Bonus (0) 0 TOTAL SCORE: 637 Bonus ------- None Cogmind --------- Core Integrity 0/250 Matter 226/300 Energy 100/100 System Corruption 0% Temperature Cool (9) Movement Core (100) Ox1 Location -10/Mines Parts ------- > --- POWER (1) -------- (None) > --- PROPULSION (2) --- (None) > --- UTILITY (2) ------ Small Storage Unit Seismic Analyzer > --- WEAPON (2) ------- (None) > --- INVENTORY (6) ---- Light Ion Engine Light Treads Light Treads Aluminum Leg Light Assault Rifle Peak State ------------ > --- POWER ------------ Ion Engine > --- PROPULSION ------- Aluminum Leg Aluminum Leg > --- UTILITY ---------- Small Storage Unit Seismic Analyzer > --- WEAPON ----------- Medium Laser Bore Cannon > --- INVENTORY -------- Light Ion Engine Light Treads Light Treads Light Assault Rifle [Rating: 11] Favorites ----------- Power Light Ion Engine Engine Light Ion Engine Propulsion Aluminum Leg Leg Aluminum Leg Utility Small Storage Unit Storage Small Storage Unit Processor Seismic Analyzer Weapon Beam Cannon Energy Gun Medium Laser Energy Cannon Beam Cannon Ballistic Gun Light Assault Rifle Ballistic Cannon Bore Cannon Launcher Rocket Launcher Build | -11 -10 -10 ------- Run | Scr Mat Min Slots Evolved . | . . . Power . | . . . Propulsion . | . . . Utility . | . . . Weapon . | . . . Parts Attached 9 | 1 1 7 Power 1 | . . 1 Engine 1 | . . 1 Core . | . . . Reactor . | . . . Propulsion 3 | . . 3 Treads . | . . . Leg 3 | . . 3 Wheel . | . . . Hover . | . . . Flight . | . . . Utility 1 | 1 . . Device . | . . . Storage . | . . . Processor 1 | 1 . . Hackware . | . . . Protection . | . . . Artifact . | . . . Weapon 4 | . 1 3 Energy Gun 1 | . . 1 Energy Cannon 1 | . 1 . Ballistic Gun . | . . . Ballistic Cannon 1 | . . 1 Launcher 1 | . . 1 Special Weapon . | . . . Impact Weapon . | . . . Slashing Weapon . | . . . Piercing Weapon . | . . . Special Melee Weapon . | . . . Unidentified Prototypes . | . . . Parts Lost 7 | . . 7 Power 1 | . . 1 Propulsion 2 | . . 2 Utility . | . . . Weapon 4 | . . 4 Highest Loss Streak 5 | . . 5 Average Slot Usage (%) 95 | . 100 94 Engine 12 | . 14 12 Leg 26 | . 28 26 Storage 14 | . 14 14 Processor 14 | . 14 14 Energy Gun 3 | . . 3 Energy Cannon 9 | . 10 9 Ballistic Gun 7 | . 17 5 Ballistic Cannon 3 | . . 4 Launcher 3 | . . 3 Naked Turns . | . . . Heaviest Build 20 | 9 11 20 Greatest Support 20 | 20 20 20 Greatest Overweight (x) 4 | . . 4 Average Overweight (x) . | . . . Largest Inventory Capacity 6 | 6 6 6 Average Capacity 6 | 6 6 6 Most Carried 6 | 6 6 6 Average Carried 5 | 5 6 5 Final Capacity 6 | 6 6 6 Final Carried 6 | 6 6 5 Class Distribution -------------------- 100% | Mutant Dominant Class ---------------- Mutant | -10/Materials Mutant | -10/Mines Resources | -11 -10 -10 ----------- Run | Scr Mat Min Matter Collected 342 | 214 . 128 Remotely . | . . . Salvage Created 256 | 72 . 184 Parts 11 | 5 . 6 Haulers Intercepted . | . . . Recyclers Shooed 1 | . . 1 Parts Field Recycled . | . . . Retrieved Matter . | . . . Parts Self-Destructed . | . . . Prevented . | . . . Kills | -11 -10 -10 ------- Run | Scr Mat Min Combat Hostiles Destroyed 7 | . . 7 Cannons 4 | . . 4 AOE 3 | . . 3 Classes Destroyed 5 | 2 . 3 Worker 1 | . . 1 Tunneler 1 | 1 . . Recycler 1 | 1 . . Grunt 5 | . . 5 Assembled 2 | . . 2 Best Kill Streak 3 | 2 . 3 Combat Bots Only 2 | . . 2 Max Kills in Single Turn 2 | 1 . 2 Gunslinging . | . . . Exploded 1 | . . 1 Melee . | . . . Uniques/NPCs Destroyed . | . . . Combat | -11 -10 -10 -------- Run | Scr Mat Min Damage Taken 1036 | . . 1036 Core 259 | . . 259 Absorbed by Shields . | . . . Core Remaining (%) 100 | 100 . . Volleys Fired 24 | 2 . 22 Largest 2 | 2 . 2 Hottest 107 | 40 . 107 Shots Fired 39 | 4 . 35 Gun 18 | 4 . 14 Cannon 14 | . . 14 Launcher 7 | . . 7 Special . | . . . Kinetic 18 | 4 . 14 Thermal 14 | . . 14 Explosive 7 | . . 7 Electromagnetic . | . . . Robot Hit Streak 7 | 4 . 7 Robot Miss Streak 5 | . . 5 Penetration Max 1 | . . 1 Secondary Targets . | . . . Shots Hit Robots 23 | 4 . 19 Core Hits 16 | 3 . 13 Critical Hits 3 | . . 3 Critical Kills 2 | . . 2 Critical Parts Destroyed 1 | . . 1 Melee Attacks . | . . . Impact . | . . . Slashing . | . . . Piercing . | . . . Sneak Attacks . | . . . Combat Hostiles . | . . . Follow-up Attacks . | . . . Damage Inflicted 749 | 35 . 714 Guns 118 | 35 . 83 Cannons 255 | . . 255 Explosions 376 | . . 376 Melee . | . . . Ramming . | . . . Kinetic 265 | 35 . 230 Thermal 108 | . . 108 Explosive 376 | . . 376 Electromagnetic . | . . . Impact . | . . . Slashing . | . . . Piercing . | . . . Highest Corruption . | . . . Average Corruption . | . . . Corruption Purged . | . . . Overload Shots . | . . . Overflow Damage 22 | . . 22 Projectiles 7 | . . 7 Explosions 15 | . . 15 Melee . | . . . Knockbacks 3 | . . 3 Impact . | . . . Kinetic 3 | . . 3 Secondary . | . . . Self-Inflicted Damage 89 | . . 89 Shots 4 | . . 4 Rammed . | . . . Targets Rammed . | . . . Kicked . | . . . Crushed . | . . . Highest Temperature 359 | . . 359 Average Temperature 132 | . . 132 Received Heat Transfer 363 | . . 363 Effects 4 | . . 4 Energy Bleed 1 | . . 1 Interference 3 | . . 3 Siege Activations . | . . . Robots Corrupted . | . . . Combat Hostiles . | . . . Parts Fried . | . . . Impact Corruptions . | . . . Robots Melted . | . . . Combat Hostiles . | . . . Parts Melted . | . . . Heat Transferred 296 | . . 296 Parts Sabotaged . | . . . Parts Stolen . | . . . Parts Stripped . | . . . Power Chain Reactions . | . . . Missiles Intercepted . | . . . Alert | -11 -10 -10 ------- Run | Scr Mat Min Peak Influence 106 | 10 6 106 Initial 6 | . 6 1 Average 35 | 9 6 41 Maximum Alert Level . | . . . Low Security (%) 100 | 100 100 100 Level 1 . | . . . Level 2 . | . . . Level 3 . | . . . Level 4 . | . . . Level 5 . | . . . High Security . | . . . Max Security . | . . . Squads Dispatched 2 | . 2 . Investigation . | . . . Extermination . | . . . Reinforcement 2 | . 2 . Assault . | . . . Garrison . | . . . Intercept . | . . . Construction Impeded . | . . . Haulers Reinforced . | . . . Stealth | -11 -10 -10 --------- Run | Scr Mat Min Distress Signals 1 | . . 1 Communications Jammed . | . . . Distress Signals . | . . . Times Spotted 15 | . 2 13 Peak Tracking Total 4 | . 1 4 Tactical Retreats 3 | . . 3 Traps | -11 -10 -10 ------- Run | Scr Mat Min Traps Triggered . | . . . Indirectly . | . . . Trap Hack Attempts . | . . . Triggered . | . . . Disarmed . | . . . Reprogrammed . | . . . Reused . | . . . Traps Extracted . | . . . Installed . | . . . Triggered . | . . . Machines | -11 -10 -10 ---------- Run | Scr Mat Min Machines Disabled . | . . . Max in Single Turn . | . . . Machines Sabotaged . | . . . Garrisons Compromised . | . . . Overloaded Fab Kills . | . . . Fab Network Shutdowns . | . . . Hacking | -11 -10 -10 --------- Run | Scr Mat Min Machines Accessed 2 | . 1 1 Terminals 1 | . 1 . Fabricators . | . . . Repair Stations . | . . . Recycling Units . | . . . Scanalyzers . | . . . Garrison Access . | . . . Total Hacks 5 | . 4 1 Successful 3 | . 2 1 Failed 2 | . 2 . Catastrophic . | . . . Database Lockouts . | . . . Manual . | . . . Terminals 4 | . 4 . Fabricators . | . . . Repair Stations . | . . . Recycling Units . | . . . Scanalyzers . | . . . Garrison Access . | . . . Terminal Hacks 3 | . 2 1 Open Door 1 | . . 1 Alert Level 1 | . 1 . Investigation Status 1 | . 1 . Fabricator Hacks . | . . . Repair Station Hacks . | . . . Recycling Unit Hacks . | . . . Scanalyzer . | . . . Garrison Access Hacks . | . . . Unauthorized Hacks . | . . . Terminals . | . . . Fabricators . | . . . Repair Stations . | . . . Recycling Units . | . . . Scanalyzers . | . . . Garrison Access . | . . . Data Cores Recovered . | . . . Used . | . . . Hacking Detections 1 | . 1 . Full Trace Events . | . . . Feedback Events . | . . . Feedback Blocked . | . . . Robot Schematics Acquired . | . . . Robots Built . | . . . Matter . | . . . Time . | . . . Total Robot Build Rating . | . . . Part Schematics Acquired . | . . . Parts Built . | . . . Matter . | . . . Time . | . . . Total Part Build Rating . | . . . Parts Repaired . | . . . Time . | . . . Parts Recycled . | . . . Recycled Matter . | . . . Retrieved Matter . | . . . Retrieved Components . | . . . Parts Scanalyzed . | . . . Part Schematics Acquired . | . . . Parts Damaged . | . . . Bothacking | -11 -10 -10 ------------ Run | Scr Mat Min Used RIF Installer . | . . . Robots Hacked . | . . . Non-combat . | . . . Combat . | . . . Robot Hacks Applied . | . . . Relay Couplers Released . | . . . Robots Rewired . | . . . Allies Hacked . | . . . Hacks Repelled . | . . . Allies | -11 -10 -10 -------- Run | Scr Mat Min Total Allies . | . . . Largest Group . | . . . Highest-Rated Group . | . . . Highest-Rated Ally . | . . . Total Orders . | . . . Ally Attacks . | . . . Total Damage . | . . . Kills . | . . . Allies Corrupted . | . . . Allies Melted . | . . . Intel | -11 -10 -10 ------- Run | Scr Mat Min Robot Analysis Total . | . . . Derelict Logs Recovered 1 | . . 1 Drone Launches . | . . . Drone Recoveries . | . . . Exploration | -11 -10 -10 ------------- Run | Scr Mat Min Turns Passed 581 | 27 75 479 Spaces Moved 402 | 15 61 326 Core 8 | . . 8 Treads . | . . . Legs 394 | 15 61 318 Wheels . | . . . Hover . | . . . Flight . | . . . Fastest Speed 100 | 120 120 100 Average Speed 122 | 120 120 122 Slowest Speed 250 | 120 120 250 Overloaded Moves . | . . . Propulsion Burnouts . | . . . Robots Hopped . | . . . Cave-ins Triggered . | . . . Exploration Rate (%) 27 | 3 16 62 Regions Visited 2 Branch Regions 1 Pre-discovered Areas . | . . . Known Exits Taken . | . . . Unknown Exits Taken 2 | 1 1 . Scrap Searched 2 | . . 2 Spaces Dug . | . . . Terrain Destroyed 72 | . . 72 Melee . | . . . Projectile 2 | . . 2 AOE 70 | . . 70 Terrain Rammed . | . . . Walls Destroyed . | . . . Machines Disabled . | . . . Actions | -11 -10 -10 --------- Run | Scr Mat Min Total 455 | 21 63 371 Wait 9 | . 1 8 Move 400 | 14 60 326 Hop . | . . . Pick Up 4 | 2 . 2 Fast Attach 5 | 1 1 3 Attach 2 | . . 2 Detach 1 | . . 1 Swap 2 | . . 2 Drop 8 | 2 1 5 Fire 24 | 2 . 22 Melee . | . . . Ram . | . . . Kick . | . . . Crush . | . . . Escape Stasis . | . . . Rewire . | . . . Trap . | . . . Miscellaneous . | . . . Route ------- -11/Scrapyard -10/Materials -10/Mines (discovered 1 exit: [*Exi]) History --------- Turn | Location | Event 7 | -11/Scrapyard | Discovered new exit (range 2) 28 | -11/Scrapyard | Entered Materials 86 | -10/Materials | Discovered new exit (range 9) 103 | -10/Materials | Entered Mines 136 | -10/Mines | Deemed a non-threat by the Exiles lab entrance 137 | -10/Mines | Discovered new exit (range 5) 196 | -10/Mines | Received a Rocket Launcher from a helpful Derelict 221 | -10/Mines | A weapon hastily lodged in a ceiling crevice suddenly fell to the ground 301 | -10/Mines | Build established: Mutant 411 | -10/Mines | Excavation squad dispatched 411 | -10/Mines | A large section of the Mines collapsed 436 | -10/Mines | Found a hidden stash of uninstalled traps 542 | -10/Mines | Core integrity fell below 50% 577 | -10/Mines | Core integrity fell below 20% 582 | -10/Mines | Met a Derelict shopkeep closing up shop 582 | -10/Mines | Destroyed by G-47 Trooper with Particle Gun Last Messages --------------- 00538_ R-06 Scavenger suffers critical hit. 00538_ Destroyed Tractor Beam. 00538_ R-06 Scavenger knocked back. 00539_ Ion Engine destroyed. 00549_ HV Slug penetrates G-47 Trooper. 00549_ HV Slug penetrates Wall. 00551_ Overheating: System interference. 00551_ Bore Cannon temporarily disabled. 00551_ Seismic Analyzer temporarily disabled. 00552_ Overheating: Energy bleed (-15). 00558_ Aluminum Leg destroyed. 00562_ T-07 Excavator destroyed. 00564_ Aluminum Leg destroyed. 00572_ Med. Laser destroyed. 00579_ Bore Cannon destroyed. 00581_ Connecting with SHOP.Sys... >>Open Door Sealed Doors opened. 00582_ 7O-QR0(g): "Sorry, the Unaware have moved into these parts and I'm closing up shop. No more sales from me!" Map ----- +----------------------------------------------------+ | ??????????????# """ #???????????# ## | | ??????????????# #???????????# #? | | ??????????????#### ####????????#### #? | | ???##???########## #???????????# #? | | ???#<#### %! ##??????????# #? | | ???# ## ######## ##?????????# #####? | | ???### #??????# ##????????# #????? | | ?????### ##??????# #????????# #????? | | ???????###???????# #??????### ###### | | ?????????????????# #?????## * | | ?????????????????## #?????# | | ??????????????????## #????## #### | | ???????????????????# ###### #??? | | ??????????????????## ##??? | | ?????????????????## ##### ####???? | | ?????????????????# #???## ##??????? | | ?????????????????## ##????# ##????#### | | ??????????????????# ##?????# #????## | | ??????????????????# #??????# #????# | | ??????????????????# #####??# #????## | | ????????????????### ## ##?# #?????# | | ???????????????## # #?# #?????# | | ??????????????## ### #?????# | | ?????????##"??# ## #????## # | | ?????????#"*! #X ## ###### # | | ?????????#"! @ ## ! ## | | ?????????#"=g ####!######? | | ?????????#"=[ # ###%#?????? | | ?????????##""## ##!####??? | | ??????????###?# = #??? | | ??????????????# * *%! #??? | | ??????????????## %| g #### #??? | | ???????????????## ! ag ##??? #??? | | ????????????????# a% ####?? #??? | | ????????????????# ## # #???? #??? | | ????????######## ### # #???? ??? | | ????????# ## # # #???? ?? | | ????????# ## # # #????? ?? | | ????????# ### ######## ###????? ? | | ????????# #?## ##??????# ##??????? ? | | ????????# #??# #????????# #???????? | | ????????# #### #????????# #??????????# | | ????????# #????????# #??????????? | | ????????# ######????##### ## #?????? | | ????????# ## ##???# % #?????? | | ????????# # ####### ######## #?????? | | ????????# # #????????? #????? | | ????????## ##### ##??????????????? | | ?????????# # # ### ##?????????????? | | ?????????# # # #?????????????? | +----------------------------------------------------+ Best States ------------- Heat Dissipation 25 Energy Generation 10 Energy Capacity 250 Matter Stores 300 Matter Capacity 300 Sight Range 16 Terrain Scan Density 60 Evasion (%) 40 Item Schematics ----------------- None Robot Schematics ------------------ None Fabricated ------------ Nothing Alien Tech Used ----------------- None Achievements -------------- Please Form A Line Challenges ------------ None Game ------ Seed TargetingMakeshiftCycler Manual? 0 Play Time 00:11:06 Cumulative 8.8 hours Start 2021.07.19 @ 22:09:05 End 2021.07.19 @ 22:21:42 Sessions 1 Manual Loads 0 Difficulty Rogue Special Mode None Game No. 7 Rogue 7 Adventurer 0 Explorer 0 Win Type - Total 0 Types 0/0/0/0/0/0/0/0/0 Lore% 3 Gallery% 10 Achievement% 8 Wizard Run 0 Options --------- ASCII 0 Keyboard 1 Movement Numpad Keybinds 0 Fullscreen 1 Font 36/X11 Map View 76x50 Tactical HUD 1 Map Filters NONE Filters NONE Steam 1 RUN: f3eec0e6-b773-4126-9f87-8191373b586c